[Event "NED-ch U14 Youth 2019"]
[Site "Assen"]
[Date "2019.04.29"]
[Round "2.5"]
[White "Van der Hagen, Loek"]
[Black "Shadrin, Mitia"]
[Result "1-0"]
[ECO "B76"]
[WhiteElo "1931"]
[BlackElo "1692"]
[Annotator "NA RC"]
[PlyCount "55"]
[EventDate "2019.04.28"]
[EventType "swiss"]
[EventCountry "NED"]
[SourceTitle "playchess.com"]
[Source "ChessBase"]
[SourceQuality "1"]
[TimeControl "5400+30"]

{[%evp 8,55,14,13,56,56,49,55,48,50,60,27,77,38,71,63,116,0,-12,0,237,195,32767,32767,224,32767,161,154,32767,32767,273,259,32767,32767,32767,314,293,301,347,250,233,32767,201,32767,32767,209,32767,359,29997,208]} 1. e4 {[%emt 0:00:00]} c5 {[%emt 0:00:00]} 2. Nf3 {[%emt 0:00:00]} d6 {[%emt 0:00:00]} 3. d4 {[%emt 0:00:00]} cxd4 {[%emt 0:00:00]} 4. Nxd4 {[%emt 0:00:00]} Nf6 {[%emt 0:00:00]} 5. Nc3 {[%emt 0:00:08]} g6 {[%emt 0:00:00]} 6. Be3 {[%emt 0:00:11]} Bg7 {[%emt 0:00:02]} 7. f3 $1 {[%emt 0:00:07]} O-O {[%emt 0:00:06]} 8. Qd2 {[%emt 0:00:03]} Nc6 {[%emt 0:00:19]} 9. O-O-O {[%emt 0:00:09]} Bd7 {[%emt 0:00:18]} (9... d5 $11) 10. h4 {[%emt 0:00:53]} Rc8 {[%emt 0:00:09]} 11. g4 {[%emt 0:04:32]} Qa5 {[%emt 0:00:13] B76: Sicilian Dragon: Yugoslav Attack, 9 g4 and 9 0-0-0} (11... Ne5 12. Kb1 Qa5 13. Nd5 Qxd2 14. Nxe7+ Kh8 15. Bxd2 Rce8 16. h5 Nfxg4 17. fxg4 Nxg4 18. hxg6 Rxe7 19. Nf5 Bxf5 20. Rxh7+ {1-0 (34) Ponkratov,P (2605)-Amonatov,F (2637) Izhevsk 2013}) 12. h5 {[%emt 0:02:56]} ({Better is} 12. Nb3 $16 Qc7 13. h5) 12... Nb4 $1 {[%emt 0:14:40]} 13. Kb1 $1 $146 {[%emt 0:12:51]} ({Predecessor:} 13. a3 Rxc3 14. Nb3 Rxc2+ 15. Qxc2 Nxc2 16. Nxa5 Nxe3 17. Re1 Nxf1 18. Rexf1 Re8 19. Kb1 {0-1 (74) Romashova,A-Grom,O Lvov 1999}) 13... Bxg4 $2 {[%emt 0:17:33]} (13... Rxc3 $1 $11 {and Black has nothing to worry.} 14. Qxc3 Qxa2+ 15. Kc1 Qa5) 14. a3 {[%emt 0:18:38]} Bxh5 {[%emt 0:04:39]} 15. axb4 {[%emt 0:02:35]} Qxb4 {[%emt 0:00:18]} 16. Be2 {[%emt 0:05:53]} Rxc3 {[%emt 0:03:24]} 17. Qxc3 {[%emt 0:04:19]} Qxc3 {[%emt 0:00:30]} 18. bxc3 {[%emt 0:00:06]} Rc8 {[%emt 0:06:01]} (18... Nxe4 $142 19. fxe4 Bxd4) 19. Rh2 {[%emt 0:03:46]} Rxc3 {[%emt 0:00:51]} 20. Rd3 {[%emt 0:01:33]} Rxd3 {[%emt 0:00:55]} 21. cxd3 {[%emt 0:00:45]} d5 {[%emt 0:00:27]} 22. Nb3 {[%emt 0:04:36]} b6 {[%emt 0:01:06]} 23. Kc1 {[%emt 0:04:05]} dxe4 {[%emt 0:00:49]} 24. fxe4 {[%emt 0:00:43]} Ng4 {[%emt 0:00:27]} 25. Bxg4 {[%emt 0:01:39]} Bxg4 {[%emt 0:00:07]} 26. Ra2 {[%emt 0:01:55]} Be6 {[%emt 0:01:36]} 27. Rxa7 {[%emt 0:01:10]} Bxb3 {[%emt 0:00:23]} (27... h5 $18 28. Nd2 (28. Rxe7 Bxb3 29. Kd2 h4 $14) 28... Be5) 28. Ra8+ {[%emt 0:00:07]} 1-0

[Event "NED-ch U14 Youth 2019"]
[Site "Assen"]
[Date "2019.04.29"]
[Round "2.7"]
[White "Kutchoukov, Daniel"]
[Black "Arnold, Lorin"]
[Result "1-0"]
[ECO "B31"]
[WhiteElo "1862"]
[BlackElo "1598"]
[Annotator "NA RC"]
[PlyCount "89"]
[EventDate "2019.04.28"]
[EventType "swiss"]
[EventCountry "NED"]
[SourceTitle "playchess.com"]
[Source "ChessBase"]
[SourceQuality "1"]
[TimeControl "5400+30"]

{[%evp 8,88,29,17,15,5,15,15,39,16,29,28,22,37,59,18,31,19,32767,53,41,43,88,59,87,44,95,89,32767,-124,-137,32767,32767,32767,32767,-31,-36,-62,-62,32767,32767,32767,32767,-75,-70,-188,-141,-140,-143,-146,-85,-186,32767,32767,32767,32767,32767,32767,-12,-27,-3,32767,0,32767,0,0,0,0,0,0,31,32767,58,66,496,551,32767,2352,32767,32767,779,32767,1306]} 1. e4 {[%emt 0:00:00]} c5 {[%emt 0:00:00]} 2. Nf3 {[%emt 0:00:00]} Nc6 {[%emt 0:00:25]} 3. Bb5 {[%emt 0:00:00]} g6 {[%emt 0:04:09]} 4. O-O {[%emt 0:01:54]} Bg7 {[%emt 0:00:18]} 5. Re1 {[%emt 0:01:58]} Nf6 {[%emt 0:05:37]} 6. c3 {[%emt 0:13:21]} O-O {[%emt 0:04:07]} 7. d4 {[%emt 0:00:53]} cxd4 {[%emt 0:00:17]} 8. cxd4 {[%emt 0:00:12]} d6 {[%emt 0:00:47] B31: Sicilian: 2...Nc6 3 Bb5 g6} (8... d5 9. e5 Ne4 10. Bxc6 bxc6 11. Nbd2 c5 12. Nxe4 dxe4 13. Rxe4 Bb7 14. Re1 Bxf3 15. Qxf3 cxd4 16. Bd2 Qb8 17. Qb3 Rc8 18. f4 Qxb3 19. axb3 Rc2 {½-½ (49) Paichadze,L (2564)-Le,Q (2715) Batumi 2018}) 9. Nc3 {[%emt 0:02:14]} Bg4 {[%emt 0:00:34]} 10. Be3 {[%emt 0:16:22]} a6 {[%emt 0:00:38]} 11. Be2 {[%emt 0:01:06]} (11. Bxc6 $5 bxc6 12. h3 Bxf3 13. Qxf3 $14) 11... b5 {[%emt 0:00:48]} 12. h3 {[%emt 0:13:03]} Bc8 $146 {[%emt 0:01:03]} ({Predecessor:} 12... Bxf3 13. Bxf3 Rc8 14. Rc1 e5 15. dxe5 dxe5 16. Nd5 Nxd5 17. exd5 {½-½ (30) Le,M (2198)-Nguyen,D (1962) Bac Giang 2016}) 13. a3 {[%emt 0:19:23]} Bb7 {[%emt 0:03:07]} 14. d5 {[%emt 0:10:22]} Nb8 {[%emt 0:02:42]} 15. Nd4 {[%emt 0:03:49]} Nbd7 {[%emt 0:00:53]} 16. f4 {[%emt 0:00:48]} Nc5 {[%emt 0:00:20] [#]} ({Black should play} 16... Rc8 $14) 17. Bf3 $1 {[%emt 0:00:07]} Rc8 {[%emt 0:00:38]} 18. e5 $2 {[%emt 0:03:46]} (18. Rc1 $16) 18... dxe5 {[%emt 0:00:30]} 19. Nc6 {[%emt 0:07:16]} Bxc6 {[%emt 0:01:45]} 20. dxc6 {[%emt 0:00:01]} e4 {[%emt 0:02:20]} 21. Bxc5 {[%emt 0:00:14]} exf3 {[%emt 0:00:17]} 22. Qxf3 {[%emt 0:00:41]} Re8 {[%emt 0:01:17]} 23. g4 {[%emt 0:02:36]} e6 {[%emt 0:01:17]} 24. Rad1 {[%emt 0:01:21]} Qc7 {[%emt 0:00:10]} 25. g5 {[%emt 0:00:30] [#]} Nh5 $1 {[%emt 0:00:19]} 26. Ne2 {[%emt 0:00:32]} (26. Ne4 $17) 26... Qxc6 {[%emt 0:00:18]} 27. Qxc6 {[%emt 0:00:13]} Rxc6 {[%emt 0:00:02]} 28. b4 {[%emt 0:00:06]} Bb2 {[%emt 0:00:47]} 29. Nd4 {[%emt 0:00:32]} (29. Rd2 $15 Bg7 30. Red1) 29... Rcc8 {[%emt 0:00:28]} 30. Re2 {[%emt 0:01:04]} Bxd4+ {[%emt 0:00:46]} 31. Rxd4 {[%emt 0:00:08]} Red8 {[%emt 0:00:14]} 32. Red2 {[%emt 0:00:32]} Rxd4 {[%emt 0:02:18]} (32... Rd5 $5 33. Rxd5 exd5 $15) 33. Rxd4 {[%emt 0:00:05]} Kg7 {[%emt 0:00:45]} 34. Kf2 {[%emt 0:00:44]} h6 {[%emt 0:00:56]} 35. h4 {[%emt 0:00:46]} hxg5 {[%emt 0:03:05]} 36. hxg5 {[%emt 0:00:02]} Re8 {[%emt 0:00:46]} 37. Bd6 {[%emt 0:01:16]} Kg8 {[%emt 0:00:43]} 38. Be5 {[%emt 0:00:29]} Rc8 {[%emt 0:01:10]} 39. Rd7 {[%emt 0:00:32]} Ng7 {[%emt 0:01:55]} 40. Ra7 {[%emt 0:00:09]} Rc2+ $2 {[%emt 0:07:09]} (40... Nf5 $16 {is more resistant.}) 41. Kf3 {[%emt 0:00:09]} Rc6 {[%emt 0:00:23]} 42. Ra8+ {[%emt 0:00:21]} Kh7 {[%emt 0:00:06]} 43. Ke4 {[%emt 0:00:23]} Rc4+ $18 {[%emt 0:00:51]} 44. Kd3 {[%emt 0:00:10]} Rc6 {[%emt 0:00:50]} 45. Rf8 {[%emt 0:00:13]} 1-0

[Event "NED-ch U14 Youth 2019"]
[Site "Assen"]
[Date "2019.04.29"]
[Round "2.8"]
[White "Slagboom, Leandro"]
[Black "Bakija, Alan"]
[Result "1-0"]
[ECO "A30"]
[WhiteElo "1738"]
[BlackElo "1580"]
[Annotator "NA RC"]
[PlyCount "87"]
[EventDate "2019.04.28"]
[EventType "swiss"]
[EventCountry "NED"]
[SourceTitle "playchess.com"]
[Source "ChessBase"]
[SourceQuality "1"]
[TimeControl "5400+30"]

1. Nf3 {[%emt 0:00:00]} Nf6 {[%emt 0:00:00]} 2. c4 {[%emt 0:00:00]} c5 {[%emt 0:00:00]} 3. b3 {[%emt 0:00:00]} Nc6 {[%emt 0:01:00]} 4. Bb2 {[%emt 0:00:00]} e6 {[%emt 0:00:21]} 5. g3 {[%emt 0:00:00]} Be7 {[%emt 0:01:42]} 6. Bg2 {[%emt 0:00:11]} O-O {[%emt 0:00:25]} 7. O-O {[%emt 0:00:04]} b6 {[%emt 0:02:04]} 8. Nc3 {[%emt 0:01:47]} Bb7 {[%emt 0:05:30]} 9. d4 {[%emt 0:00:50]} d5 {[%emt 0:02:14]} 10. cxd5 {[%emt 0:04:53]} Nxd5 {[%emt 0:01:31]} 11. Nxd5 {[%emt 0:09:32]} exd5 {[%emt 0:12:12]} 12. Rc1 {[%emt 0:01:30]} Bf6 {[%emt 0:19:53]} 13. Qd2 {[%emt 0:03:50]} cxd4 {[%emt 0:11:32]} 14. Nxd4 {[%emt 0:00:57]} Qd7 {[%emt 0:00:38]} 15. Rfd1 {[%emt 0:07:54]} Rfd8 {[%emt 0:02:23]} 16. Nxc6 {[%emt 0:10:05]} Bxc6 {[%emt 0:00:06]} 17. Bxf6 {[%emt 0:00:25]} gxf6 {[%emt 0:00:07]} 18. Qc3 {[%emt 0:04:22]} Rac8 {[%emt 0:03:44]} 19. Qxf6 {[%emt 0:01:10]} Qe6 {[%emt 0:00:17]} 20. Qb2 {[%emt 0:09:08]} Rd6 {[%emt 0:02:23]} 21. Rd4 {[%emt 0:04:14]} f6 {[%emt 0:02:22]} 22. Rh4 {[%emt 0:04:42]} Qe5 {[%emt 0:03:15]} 23. Qd2 {[%emt 0:02:09]} Rc7 {[%emt 0:04:20]} 24. Rd1 {[%emt 0:04:09]} Rcd7 {[%emt 0:01:29]} 25. Bh3 {[%emt 0:02:03]} Rg7 {[%emt 0:02:55]} 26. Bg2 {[%emt 0:00:50]} Rgd7 {[%emt 0:01:25]} 27. e3 {[%emt 0:00:35]} Kh8 {[%emt 0:08:11]} 28. Qd4 {[%emt 0:00:34]} Kg7 {[%emt 0:06:00]} 29. Rf4 {[%emt 0:01:07]} Qxd4 {[%emt 0:02:08]} 30. Rfxd4 {[%emt 0:00:17]} Kf7 {[%emt 0:00:13]} 31. e4 {[%emt 0:00:48]} Ke7 {[%emt 0:01:15]} 32. exd5 {[%emt 0:00:22]} Bb7 {[%emt 0:00:33]} 33. Bh3 {[%emt 0:01:16]} Rc7 {[%emt 0:02:48]} 34. Rc4 {[%emt 0:00:57]} Rc5 {[%emt 0:00:57]} 35. Rxc5 {[%emt 0:00:39]} bxc5 {[%emt 0:00:03]} 36. Bg2 {[%emt 0:01:20]} f5 {[%emt 0:00:25]} 37. Rc1 {[%emt 0:00:47]} Bxd5 {[%emt 0:00:10]} 38. Rxc5 {[%emt 0:00:10]} Be6 {[%emt 0:01:04]} 39. Bf3 {[%emt 0:00:53]} Rd7 {[%emt 0:01:08]} 40. Kg2 {[%emt 0:00:41]} Kf6 {[%emt 0:00:14]} 41. h4 {[%emt 0:00:35]} Kg6 {[%emt 0:00:28]} 42. Rc6 {[%emt 0:01:09]} Kf6 {[%emt 0:02:03]} 43. a4 {[%emt 0:01:10]} Ke5 {[%emt 0:00:00]} 44. b4 {[%emt 0:00:47]} 1-0

[Event "NED-ch U14 Youth 2019"]
[Site "Assen"]
[Date "2019.04.29"]
[Round "2.9"]
[White "Roebers, Eline"]
[Black "Dekker, Thiemen"]
[Result "1-0"]
[ECO "C47"]
[WhiteElo "2077"]
[BlackElo "1521"]
[Annotator "NA RC"]
[PlyCount "49"]
[EventDate "2019.04.28"]
[EventType "swiss"]
[EventCountry "NED"]
[SourceTitle "playchess.com"]
[Source "ChessBase"]
[SourceQuality "1"]
[TimeControl "5400+30"]

{[%evp 8,44,40,33,41,11,8,33,2,34,20,-20,22,-41,-32,-35,-6,-79,-84,-89,-40,-51,-47,-48,-9,-8,-8,-32,0,0,32767,32767,302,302,32767,32767,645,707,907]} 1. e4 {[%emt 0:00:00]} e5 {[%emt 0:00:00]} 2. Nf3 {[%emt 0:00:00]} Nc6 {[%emt 0:00:00]} 3. Nc3 {[%emt 0:00:00]} Nf6 {[%emt 0:00:20]} 4. a3 {[%emt 0:00:00]} Bc5 {[%emt 0:00:42]} 5. Nxe5 {[%emt 0:00:31]} Nxe5 {[%emt 0:00:35]} 6. d4 {[%emt 0:00:09] Double Attack C47: Scotch Four Knights and Four Knights with 4 g3} Bd6 $1 {[%emt 0:03:37]} ({Don't blunder} 6... Nfg4 $2 7. dxc5 d6 8. cxd6 $18) 7. f4 {[%emt 0:01:05]} (7. dxe5 Bxe5 8. Nb5 c6 9. Nd6+ Bxd6 10. Qxd6 Nxe4 11. Qe5+ Qe7 12. Qxg7 Nf6+ {1-0 (43) Mamedov,R (2678)-Dragnev,V (2466) Heraklio 2017}) 7... Ng6 {[%emt 0:05:17]} 8. e5 {[%emt 0:00:13] Double Attack} Be7 $1 {[%emt 0:00:30]} 9. exf6 {[%emt 0:01:31]} (9. f5 $14 Nh4 10. exf6 Bxf6 11. Qe2+ Kf8 12. Qf2) 9... Bxf6 {[%emt 0:00:37]} 10. Be2 {[%emt 0:00:41]} d5 {[%emt 0:02:31]} 11. O-O {[%emt 0:00:52]} O-O $146 {[%emt 0:02:44]} ({Predecessor:} 11... Nh4 12. Be3 Nf5 {1-0 (59) Massironi,M (2211)-Brunello,S (2552) Trieste 2018}) 12. Bf3 {[%emt 0:09:03]} (12. f5 $11 Ne7 13. g4) 12... c6 {[%emt 0:01:22]} 13. Ne2 {[%emt 0:04:59]} Re8 {[%emt 0:02:43]} 14. c3 {[%emt 0:03:33]} Nh4 {[%emt 0:04:15]} 15. Ng3 {[%emt 0:02:15]} Nxf3+ {[%emt 0:01:28]} 16. Qxf3 {[%emt 0:00:09]} Bd7 {[%emt 0:02:13]} 17. f5 {[%emt 0:02:47]} Bh4 {[%emt 0:07:13]} (17... c5 $5 18. Be3 cxd4 19. Bxd4 Bxd4+ 20. cxd4 Qb6 $15) 18. Nh5 {[%emt 0:06:57]} Re4 {[%emt 0:06:32]} 19. Bf4 {[%emt 0:16:05]} g6 $2 {[%emt 0:10:13]} (19... h6 $11) 20. fxg6 {[%emt 0:02:09]} fxg6 {[%emt 0:15:49]} 21. Bg5 {[%emt 0:04:41]} Qf8 {[%emt 0:00:32]} 22. Nf6+ {[%emt 0:00:57] Double Attack} Kg7 $18 {[%emt 0:01:36]} 23. Nxe4 {[%emt 0:00:36]} Qxf3 {[%emt 0:00:29]} 24. gxf3 {[%emt 0:00:08]} dxe4 {[%emt 0:00:54]} 25. Bxh4 {[%emt 0:00:08]} 1-0

[Event "NED-ch U14 Youth 2019"]
[Site "Assen"]
[Date "2019.04.29"]
[Round "2.10"]
[White "Van Kuijk, Vadim"]
[Black "Klaren, Duncan"]
[Result "0-1"]
[ECO "D02"]
[WhiteElo "1589"]
[BlackElo "1980"]
[Annotator "NA RC"]
[PlyCount "71"]
[EventDate "2019.04.28"]
[EventType "swiss"]
[EventCountry "NED"]
[SourceTitle "playchess.com"]
[Source "ChessBase"]
[SourceQuality "1"]
[TimeControl "5400+30"]

{[%evp 8,44,6,4,9,-6,18,-4,15,-8,38,0,0,-7,32767,32767,30,32767,32767,32767,36,-105,312,288,32767,-165,260,32767,32767,267,266,0,0,0,377,409,387,468,416]} 1. d4 {[%emt 0:00:00]} Nf6 {[%emt 0:00:00]} 2. Bf4 {[%emt 0:00:00]} e6 {[%emt 0:00:59]} 3. Nf3 {[%emt 0:00:07]} d5 {[%emt 0:00:16]} 4. e3 {[%emt 0:00:57]} c5 {[%emt 0:00:21]} 5. c3 {[%emt 0:00:56]} Nbd7 {[%emt 0:00:25]} 6. Bd3 {[%emt 0:01:31]} Be7 {[%emt 0:00:12]} 7. Nbd2 {[%emt 0:01:24]} O-O {[%emt 0:00:17]} 8. Qe2 {[%emt 0:08:04] D02: 1 d4 d5 2 Nf3 sidelines, including 2...Nf6 3 g3 and 2...Nf6 3 Bf4} h6 $146 {[%emt 0:15:36]} ({Predecessor:} 8... b6 9. Ne5 Bb7 10. g4 Ne4 11. f3 Bh4+ 12. Bg3 Nxd2 13. Kxd2 cxd4 14. Bxh4 dxc3+ 15. bxc3 Qxh4 16. Nxd7 {0-1 (42) Kovalev,V (2639)-Lewicki,M (2404) Katowice 2017}) 9. h3 {[%emt 0:15:40]} c4 {[%emt 0:06:55]} 10. Bb1 {[%emt 0:18:28]} b5 {[%emt 0:01:20]} 11. g4 {[%emt 0:14:13]} Ne8 {[%emt 0:26:31]} ({Better is} 11... b4 $17 12. e4 bxc3 13. bxc3 Ba3) 12. e4 {[%emt 0:08:53]} b4 {[%emt 0:03:34]} 13. e5 {[%emt 0:20:58]} f6 {[%emt 0:02:11]} 14. Nxc4 $2 {[%emt 0:01:47]} (14. exf6 $16 {keeps the pressure on.} Rxf6 15. Qe3) 14... Ba6 $2 {[%emt 0:03:00]} (14... dxc4 $17 {keeps the pressure on.} 15. Qe4 f5 16. Qxa8 Qc7 17. gxf5 Bb7 18. Qxa7 Qc6) 15. Qc2 {[%emt 0:00:34]} f5 {[%emt 0:00:37]} 16. gxf5 $4 {[%emt 0:01:15]} (16. Ne3 $18 {was the only winning move.}) 16... Bxc4 $2 {[%emt 0:03:27]} (16... Rxf5 $17 {keeps the pressure on.} 17. Qd2 bxc3 18. bxc3 Rxf4 19. Qxf4 Bxc4) 17. fxe6 {[%emt 0:01:52]} Ndf6 {[%emt 0:00:19]} 18. exf6 {[%emt 0:00:44]} Nxf6 {[%emt 0:00:11] [#]} 19. Rg1 $2 {[%emt 0:01:15]} (19. Qg6 $1 $18 Qe8 20. Rg1 Qxg6 21. Bxg6) 19... Ne4 {[%emt 0:03:00]} 20. Be5 {[%emt 0:00:42]} Bf6 $2 {[%emt 0:00:33] [#]} (20... Rxf3 $11 21. Rxg7+ Kf8) 21. Nd2 $1 {[%emt 0:00:37]} Bxe5 {[%emt 0:23:17]} 22. Nxe4 {[%emt 0:00:26]} dxe4 $18 {[%emt 0:00:27]} 23. Qxe4 {[%emt 0:00:28]} Bxe6 {[%emt 0:00:12]} 24. Qxe5 {[%emt 0:00:29]} Qd7 {[%emt 0:00:37]} 25. Qe4 {[%emt 0:00:37]} Bf5 {[%emt 0:00:18]} 26. Qg2 {[%emt 0:00:30]} Rae8+ {[%emt 0:01:13]} 27. Kd2 {[%emt 0:00:23]} bxc3+ {[%emt 0:01:01]} 28. bxc3 {[%emt 0:00:15]} Bxh3 {[%emt 0:00:17]} 29. Qg3 {[%emt 0:00:49]} Qe7 {[%emt 0:00:16]} 30. Bd3 {[%emt 0:00:27]} Bf5 {[%emt 0:02:33]} 31. Rae1 {[%emt 0:00:20]} Qb7 {[%emt 0:00:16]} 32. Bxf5 {[%emt 0:00:30]} Rxe1 {[%emt 0:01:03]} 33. Rxe1 {[%emt 0:00:37]} Rxf5 {[%emt 0:00:05]} 34. Re2 {[%emt 0:00:41]} Rf3 {[%emt 0:00:24]} 35. Re8+ {[%emt 0:00:29]} Kf7 {[%emt 0:00:13]} 36. Rb8 {[%emt 0:00:42]} 0-1

[Event "NED-ch U14 Youth 2019"]
[Site "Assen"]
[Date "2019.04.29"]
[Round "2.11"]
[White "De Heij, Mees"]
[Black "Van Foreest, Nanne"]
[Result "0-1"]
[ECO "C55"]
[WhiteElo "1524"]
[BlackElo "1790"]
[Annotator "NA RC"]
[PlyCount "114"]
[EventDate "2019.04.28"]
[EventType "swiss"]
[EventCountry "NED"]
[SourceTitle "playchess.com"]
[Source "ChessBase"]
[SourceQuality "1"]
[TimeControl "5400+30"]

1. e4 {[%emt 0:00:00]} e5 {[%emt 0:00:00]} 2. Nf3 {[%emt 0:00:00]} Nc6 {[%emt 0:00:00]} 3. Nc3 {[%emt 0:00:00]} Nf6 {[%emt 0:00:00]} 4. Bc4 {[%emt 0:00:45]} Be7 {[%emt 0:01:17]} 5. d3 {[%emt 0:00:58]} d6 {[%emt 0:00:08]} 6. h3 {[%emt 0:01:18]} O-O {[%emt 0:01:21]} 7. O-O {[%emt 0:00:29]} h6 {[%emt 0:02:35]} 8. Be3 {[%emt 0:00:32]} Na5 {[%emt 0:02:59]} 9. Bb3 {[%emt 0:03:56]} c6 {[%emt 0:03:25]} 10. Re1 {[%emt 0:04:12]} Re8 {[%emt 0:01:45]} 11. Qd2 {[%emt 0:04:08]} Nxb3 {[%emt 0:01:11]} 12. axb3 {[%emt 0:00:17]} a6 {[%emt 0:00:29]} 13. Ne2 {[%emt 0:09:00]} Bf8 {[%emt 0:04:42]} 14. Ng3 {[%emt 0:11:23]} d5 {[%emt 0:02:44]} 15. exd5 {[%emt 0:04:00]} cxd5 {[%emt 0:00:52]} 16. Qa5 {[%emt 0:02:29]} Qxa5 {[%emt 0:00:25]} 17. Rxa5 {[%emt 0:00:06]} Bb4 {[%emt 0:00:06]} 18. Bd2 {[%emt 0:01:19]} Bxa5 {[%emt 0:01:23]} 19. Bxa5 {[%emt 0:00:01]} e4 {[%emt 0:01:33]} 20. dxe4 {[%emt 0:02:38]} Nxe4 {[%emt 0:00:42]} 21. Nd2 {[%emt 0:05:01]} Nf6 {[%emt 0:00:32]} 22. Rxe8+ {[%emt 0:01:11]} Nxe8 {[%emt 0:01:19]} 23. c4 {[%emt 0:01:39]} Nf6 {[%emt 0:01:16]} 24. cxd5 {[%emt 0:02:06]} Nxd5 {[%emt 0:00:21]} 25. Nc4 {[%emt 0:00:13]} Be6 {[%emt 0:00:27]} 26. Ne4 {[%emt 0:01:08]} b6 {[%emt 0:02:33]} 27. Nxb6 {[%emt 0:01:44]} Nxb6 {[%emt 0:00:06]} 28. Bxb6 {[%emt 0:00:05]} Rb8 {[%emt 0:00:20]} 29. Bd4 {[%emt 0:00:59]} Rb4 {[%emt 0:00:13]} 30. Nc5 {[%emt 0:04:52]} Rxd4 {[%emt 0:00:08]} 31. Nxa6 {[%emt 0:00:09]} Bxb3 {[%emt 0:00:11]} 32. Nc5 {[%emt 0:00:16]} Rb4 {[%emt 0:00:10]} 33. Nd3 {[%emt 0:00:30]} Rb8 {[%emt 0:00:12]} 34. Nc5 {[%emt 0:00:24]} Be6 {[%emt 0:00:10]} 35. Nd3 {[%emt 0:00:37]} Rb3 {[%emt 0:00:08]} 36. Nf4 {[%emt 0:00:35]} Rxb2 {[%emt 0:00:10]} 37. Nd3 {[%emt 0:00:10]} Rd2 {[%emt 0:00:11]} 38. Nf4 {[%emt 0:00:34]} g5 {[%emt 0:00:45]} 39. Nh5 {[%emt 0:00:07]} Rd1+ {[%emt 0:00:18]} 40. Kh2 {[%emt 0:00:08]} Kh8 {[%emt 0:00:13]} 41. Nf6 {[%emt 0:00:14]} Kg7 {[%emt 0:00:26]} 42. Ne4 {[%emt 0:00:14]} f5 {[%emt 0:00:12]} 43. Ng3 {[%emt 0:00:52]} Bc4 {[%emt 0:00:13]} 44. Nxf5+ {[%emt 0:00:31]} Kh7 {[%emt 0:00:30]} 45. Ne3 {[%emt 0:00:17]} Rc1 {[%emt 0:00:29]} 46. Ng4 {[%emt 0:00:19]} Kg7 {[%emt 0:01:21]} 47. Kg3 {[%emt 0:00:20]} Bd5 {[%emt 0:00:23]} 48. Ne3 {[%emt 0:00:23]} Rc3 {[%emt 0:00:19]} 49. Kh2 {[%emt 0:00:21]} Rxe3 {[%emt 0:00:08]} 50. fxe3 {[%emt 0:00:07]} h5 {[%emt 0:00:56]} 51. Kg3 {[%emt 0:00:21]} Kf6 {[%emt 0:00:26]} 52. h4 {[%emt 0:00:44]} g4 {[%emt 0:00:05]} 53. Kf2 {[%emt 0:00:09]} Kf5 {[%emt 0:00:10]} 54. Kg3 {[%emt 0:02:32]} Ke4 {[%emt 0:00:25]} 55. Kf2 {[%emt 0:00:06]} Bc4 {[%emt 0:00:06]} 56. Kg3 {[%emt 0:01:48]} Kxe3 {[%emt 0:00:05]} 57. Kh2 {[%emt 0:00:07]} Bd5 {[%emt 0:00:19]} 0-1

[Event "NED-ch U14 Youth 2019"]
[Site "Assen"]
[Date "2019.04.29"]
[Round "2.12"]
[White "Tiggelman, Vincent"]
[Black "Jakhari, Ansh"]
[Result "0-1"]
[ECO "B50"]
[WhiteElo "1378"]
[BlackElo "1630"]
[Annotator "NA RC"]
[PlyCount "32"]
[EventDate "2019.04.28"]
[EventType "swiss"]
[EventCountry "NED"]
[SourceTitle "playchess.com"]
[Source "ChessBase"]
[SourceQuality "1"]
[TimeControl "5400+30"]

1. e4 {[%emt 0:00:00]} c5 {[%emt 0:00:00]} 2. Nf3 {[%emt 0:00:00]} d6 {[%emt 0:00:00]} 3. Nc3 {[%emt 0:00:03]} Nf6 {[%emt 0:00:00]} 4. e5 {[%emt 0:00:13]} dxe5 {[%emt 0:00:15]} 5. Nxe5 {[%emt 0:00:08]} a6 {[%emt 0:00:43]} 6. g3 {[%emt 0:00:11]} e6 {[%emt 0:01:03]} 7. Bg2 {[%emt 0:04:09]} Bd6 {[%emt 0:00:08]} 8. d4 {[%emt 0:16:35]} O-O {[%emt 0:00:59]} 9. O-O {[%emt 0:01:16]} Qc7 {[%emt 0:00:17]} 10. Re1 {[%emt 0:05:22]} Rd8 {[%emt 0:02:49]} 11. Bf4 {[%emt 0:32:26]} Nc6 {[%emt 0:04:01]} 12. Nxc6 {[%emt 0:04:04]} bxc6 {[%emt 0:00:03]} 13. Bxd6 {[%emt 0:01:22]} Rxd6 {[%emt 0:00:09]} 14. d5 {[%emt 0:24:57]} cxd5 {[%emt 0:00:35]} 15. Nxd5 {[%emt 0:06:02]} exd5 {[%emt 0:00:19]} 16. Bxd5 {[%emt 0:00:12]} Bb7 {[%emt 0:00:39]} 0-1

[Event "NED-ch U14 Youth 2019"]
[Site "Assen"]
[Date "2019.04.29"]
[Round "2.13"]
[White "Catalan, Ciro"]
[Black "De Putter, Sven"]
[Result "1-0"]
[ECO "E06"]
[WhiteElo "1599"]
[BlackElo "1381"]
[Annotator "NA RC"]
[PlyCount "25"]
[EventDate "2019.04.28"]
[EventType "swiss"]
[EventCountry "NED"]
[SourceTitle "playchess.com"]
[Source "ChessBase"]
[SourceQuality "1"]
[TimeControl "5400+30"]

1. d4 {[%emt 0:00:00]} d5 {[%emt 0:05:05]} 2. c4 {[%emt 0:00:00]} e6 {[%emt 0:00:32]} 3. Nf3 {[%emt 0:00:00]} Nf6 {[%emt 0:00:54]} 4. g3 {[%emt 0:00:00]} Be7 {[%emt 0:01:47]} 5. Bg2 {[%emt 0:00:07]} c5 {[%emt 0:00:53]} 6. cxd5 {[%emt 0:03:17]} Nxd5 {[%emt 0:01:40]} 7. O-O {[%emt 0:01:20]} Nc6 {[%emt 0:00:21]} 8. dxc5 {[%emt 0:05:24]} Bxc5 {[%emt 0:00:51]} 9. a3 {[%emt 0:06:25]} a6 {[%emt 0:03:06]} 10. e4 {[%emt 0:07:52]} Nb6 {[%emt 0:02:23]} 11. Qc2 {[%emt 0:18:32]} Be7 {[%emt 0:01:47]} 12. Rd1 {[%emt 0:02:51]} Qc7 {[%emt 0:01:12]} 13. Bf4 {[%emt 0:01:20]} 1-0